[Event "45th FIDE Olympiad 2024"]
[Site "Budapest"]
[Date "2024.09.19"]
[Round "8.92"]
[White "Kurmann, Oliver"]
[Black "Apol, Luitjen Akselsson"]
[Result "0-1"]
[ECO "B95"]
[WhiteElo "2421"]
[BlackElo "2219"]
[Annotator "TA"]
[PlyCount "160"]
[EventDate "2024.09.05"]
[EventType "team-tourn"]
[EventCountry "HUN"]
[SourceTitle "playchess.com"]
[Source "ChessBase"]
[SourceQuality "1"]
[WhiteTeam "Switzerland"]
[BlackTeam "Faroe Islands"]
[WhiteTeamCountry "SUI"]
[BlackTeamCountry "FAI"]
[TimeControl "40/5400+30:1800+30"]

{[%evp 14,160,10,0,0,0,0,0,0,0,0,0,27,23,15,22,21,14,0,0,31,0,21,17,22,-36,-31,-32,-14,-35,-25,-47,-28,-40,-18,-48,-27,-36,-33,-18,-38,-36,-37,-33,-26,-41,-38,-47,0,-14,-7,-8,0,-21,8,15,20,0,0,0,73,0,0,0,0,0,0,0,8,0,0,-9,0,0,0,0,13,-74,-47,-41,23,-101,-74,-78,-70,-76,-70,-81,-52,-68,-66,-57,-47,-299,-333,-348,-333,-374,-189,-197,-146,-380,-408,-543,-535,-516,-453,-453,-453,-453,-445,-444,-379,-1275,-1254,-740,-500,-29966,-5705,-5693,-5081,-29985,-29986,-29986,-29987,-29987,-29974,-29984,-29976,-29976,-29975,-29984,-29985,-29983,-29984,-29989,-29990,-29990,-29990,-29991,-29992,-29995,-29987,-29985,-29983,-29983,-29984,-29983,-29984]} 1. e4 c5 2. Nf3 d6 3. d4 cxd4 4. Nxd4 Nf6 5. Nc3 a6 6. Bg5 Nbd7 7. f3 e6 8. Qd2 h6 9. Be3 b5 10. a3 Bb7 {The position is equal.} 11. O-O-O Rc8 12. Kb1 d5 13. exd5 Bxd5 14. Bf4 Qb6 15. Re1 {And now Nxd5 would win.} Bb7 16. Nf5 b4 17. axb4 Bxb4 18. Nd6+ (18. Nxg7+ Kf8 19. Bxh6 Bxc3 20. Nxe6+ Ke7 21. Nc5+ Be5) 18... Ke7 19. Nxc8+ ({White should play} 19. Nc4 $11 Qc6 20. Rd1) 19... Rxc8 $15 20. Na4 Bxd2 21. Nxb6 Bxf4 22. Nxc8+ Bxc8 23. Rd1 Bb7 {[%mdl 1024] Black has compensation.} 24. Be2 Bc7 25. Rd3 Nc5 26. Ra3 a5 27. Bb5 Nd5 28. Re1 Kf6 29. g3 g5 30. Kc1 e5 (30... Bb6 $15 {feels stronger.}) 31. Kd2 Ne6 32. c3 Bb6 33. Bc4 Nec7 34. Rea1 Ne7 35. Rb3 Nc8 36. Be2 {[%cal Oa1a5]} Bd5 {[#]} (36... Bc6 $11) 37. Rba3 ({Better is} 37. c4 $1 $16 {[%cal Rc4d5]} Be6 38. Ke1) 37... Nd6 $11 38. b3 e4 39. fxe4 Nxe4+ 40. Kc2 Nc5 41. c4 Be4+ 42. Kc3 $1 Nb7 $36 {[%mdl 2048] Black fights for an advantage.} 43. Rf1+ Kg6 44. Bf3 f5 45. Raa1 (45. g4 $11 {remains equal.} Ne6 46. gxf5+ Kxf5 47. Bxe4+ Kxe4 48. Rf7) 45... Ne6 $17 46. Rad1 {Prevents Bd4+} Bc5 (46... Nbc5 $15) 47. g4 (47. Bxe4 $11 {keeps the balance.} Bb4+ 48. Kc2 fxe4 49. Rd5) 47... Bb4+ {A strong pair of Bishops.} 48. Kb2 Nbc5 {Black is more active.} 49. gxf5+ $1 Bxf5 50. Bh5+ Kxh5 51. Rxf5 Kg4 52. Rf6 h5 {Hoping for ...Kh3.} (52... Bc3+ 53. Kxc3 Ne4+ 54. Kb2 Nxf6 55. Ra1 $17) 53. Kc2 $2 {[%mdl 8192]} ({White should try} 53. h4 $15) 53... Kh3 $19 54. Rf2 g4 55. Rf5 Kxh2 (55... h4 $142 56. Rf2 Ng5 (56... g3 $2 57. hxg3 hxg3 58. Rf6 $19)) 56. Rxh5+ Kg2 {White must now prevent ...g3.} 57. Rhh1 $2 {This move loses the game for White.} (57. Rh4 $17 g3 58. Rd5) 57... g3 {[%cal Oe6d4] ...Nd4+! is the strong threat.} 58. Rdg1+ Kf3 59. Rf1+ Kg4 60. Rh8 Ng5 (60... Nd4+ $2 61. Kb2 $19) 61. Rg8 Nce4 (61... g2 $2 62. Rg1 Nce4 63. Rxg2+ Kf4 64. Rd8 $18) 62. Kd3 Bc5 {Threatens to win with ...g2.} 63. Ra8 $2 (63. Re1 Kf3 (63... Nf2+ $2 64. Kc2 $19) 64. Ra8) 63... g2 64. Re1 Ng3 {aiming for ...Nf1.} (64... g1=R 65. Rxg1+ Bxg1 66. Rxa5 $17) 65. Rxa5 {[#]} (65. Rg8 $19) 65... Nf1 (65... g1=B 66. Re5 Nf3 (66... Bgf2 $2 67. Rexc5 Bxc5 68. Rxc5 $18) 67. Raxc5 $11 (67. Rexc5 Ne1+ 68. Kd2 Bxc5 $11)) (65... Nf3 $142 66. Rd1 Nf1 (66... g1=N $2 67. Rxc5 Nh3 68. Ke3 $18) (66... g1=B 67. Rb5 $11) (66... g1=R 67. Rxg1 Bxg1 68. c5 $17) 67. Rxc5 g1=Q (67... g1=R $2 68. Rc8 $18) 68. Rd5 Qe3+ 69. Kc2 Qe2+ 70. Kc3 Ne3 71. R1d3 Qe1+ (71... Nxd5+ $2 72. Rxd5 Qe3+ 73. Kb4 $19) (71... Qc2+ $2 72. Kb4 $19) 72. Kb2 Nxd5 73. Rxd5 Qe3 74. Rd7 Nd4 75. Rb7 Qf3 76. Rb8 Qf2+ 77. Kc3 Qe3+ (77... Qg3+ 78. Kxd4 Qxb8 79. Kc5 Qxb3 80. Kd4 Kf4 81. c5 Qd1+ 82. Kc4 Ke4 83. Kb5 Kd5 84. Kb6 Qb3+ 85. Kc7 Kxc5 86. Kd8 Kd6 87. Kc8 Qb5 88. Kd8 Qd7#) 78. Kb2 Qd2+ 79. Ka3 Qc1+ 80. Ka4 Qa1+ 81. Kb4 Nc6+ 82. Kc5 Nxb8 83. Kb6 Qc3 84. Kc7 Qxb3 85. Kc8 Kf5 (85... Qxc4+ 86. Kxb8 Qb5+ 87. Kc7 Kf5 88. Kc8 Kf6 89. Kc7 Ke7 90. Kc8 Kd6 91. Kd8 Qd7#) (85... Na6 86. Kd7 Qxc4 87. Ke7 Kf5 88. Ke8 Kf6 89. Kd8 Qc7+ 90. Ke8 Qe7#) 86. Kc7 Ke6 (86... Qxc4+ 87. Kxb8 Ke6 88. Kb7 Kd6 89. Kb6 Qb4+ 90. Ka6 Kc7 91. Ka7 Qb7#) (86... Na6+ 87. Kc6 Ke6 88. c5 Kf7 89. Kd7 Qe6+ 90. Kd8 Qe8#) 87. c5 Qb4 (87... Nd7 88. Kc6 Ke7 89. Kc7 Qb5 90. Kc8 Qc6#) 88. Kc8 Na6 89. Kd8 Qb8#) 66. Rxc5 g1=Q {( -> ...Qg3+)} (66... g1=R 67. Ree5 Nh3 68. Kc2 $16) 67. Ree5 Qg3+ {Black mates.} 68. Kc2 Qf2+ 69. Kc1 Qd2+ 70. Kb1 Qd3+ 71. Ka2 Nf3 72. Re8 Nd4 73. Rg8+ Kf3 74. Rf8+ Ke2 75. Rb8 Nd2 76. Re5+ Kd1 77. Rd5 Qc2+ 78. Ka3 Nb1+ 79. Kb4 Qxb3+ 80. Kc5 Qxb8 {Weighted Error Value: White=0.27 (precise) /Black=0.17 (very precise) .  Loses game:     	White=2     	---        Mistake:       	White=5     	Black=4      Inaccurate:     	White=2     	Black=4      OK:         	White=27    	Black=16     Best:        	White=4     	Black=8      Strong:       	White=2     	---} 0-1

[Event "45th FIDE Olympiad 2024"]
[Site "Budapest"]
[Date "2024.09.19"]
[Round "8.93"]
[White "Ashiku, Franc"]
[Black "Grandelius, Nils"]
[Result "0-1"]
[ECO "A43"]
[WhiteElo "2400"]
[BlackElo "2653"]
[Annotator "TA"]
[PlyCount "82"]
[EventDate "2024.09.05"]
[EventType "team-tourn"]
[EventCountry "HUN"]
[SourceTitle "playchess.com"]
[Source "ChessBase"]
[SourceQuality "1"]
[WhiteTeam "Albania"]
[BlackTeam "Sweden"]
[WhiteTeamCountry "ALB"]
[BlackTeamCountry "SWE"]
[TimeControl "40/5400+30:1800+30"]

{[%evp 9,82,33,12,28,28,20,35,41,20,-20,27,-61,0,0,0,0,49,40,106,60,76,37,154,6,136,149,133,128,150,74,168,181,171,183,182,142,245,243,250,0,0,0,0,0,0,4,28,28,39,-54,-33,-68,0,-8,-8,-288,-266,-251,0,-210,-14,-2061,-1828,-1463,0,-841,0,-2185,-2179,-1951,-1911,-1896,-1816,-29987,-29988]} 1. d4 Nf6 2. Nf3 c5 3. d5 b5 4. e4 Nxe4 5. Bd3 Qa5+ 6. Nbd2 {[%mdl 1024] White has compensation.} Nf6 {[%cal Oc5c4]} 7. O-O $1 c4 8. Be4 {[%cal Oa2a4] White is slightly better.} d6 9. Nd4 {[%cal Oa2a4]} g6 (9... Nbd7 {was preferrable.}) 10. Qf3 (10. Bf3 $11) 10... Bg7 (10... a6 $15 11. a4 Qb6 (11... bxa4 12. Qe2 $11)) 11. Ne6 $11 fxe6 12. dxe6 Bxe6 13. Bxa8 $14 d5 (13... O-O $14) 14. Qe2 (14. Re1 $16 Bf7 15. a4) 14... Bf7 {[#]} 15. Nf3 $1 {Strongly threatening Ng5.} O-O (15... Qa6 $1 $14) 16. Ng5 (16. Qxe7 $16 Ne4 17. a3) 16... Na6 (16... e6 $1 $11 {keeps the balance.}) 17. Bb7 $16 Nc5 18. Qxe7 b4 19. Be3 ({White should play} 19. Bc8) 19... Nxb7 (19... Nce4 $16) 20. Qxb7 $18 {[%cal Og5f7] Nxf7! is the strong threat.} d4 {[%cal Bd5d4,Bd4e3,Be3f2][%mdl 32]} 21. Nxf7 (21. Bxd4 Qxg5 22. Qxa7 Nd5 $19) 21... dxe3 22. Nd6 Qc5 (22... e2 $2 23. Rfe1 Qc5 24. Qe7 $18) (22... Qe5 $16 23. Qa6 (23. Qxb4 Nd5 $18) (23. Nxc4 exf2+ 24. Kh1 Qf4 $11) 23... e2) 23. Qe7 exf2+ 24. Kh1 $2 {[#]} ({White has to play} 24. Rxf2 $18 {Raf1 would now be deadly.} h5 (24... Qxf2+ $2 25. Kxf2 Nd5+ 26. Qxf8+ Kxf8 27. Nxc4 $18) 25. Nf5 Qxe7 26. Nxe7+ Kh7 27. Re1) 24... h5 $1 $11 25. Qe6+ Kh7 26. Ne4 Nxe4 27. Qxe4 Bxb2 28. Rad1 Rf5 {Against Rd5. Active counter play!} 29. g4 {White is weak on the dark squares} (29. Rd7+ $14 Bg7 30. g3) 29... hxg4 $15 30. Qxg4 Bf6 (30... Be5 $1 $15 31. Qh3+ Rh5 32. Qd7+ Kh8 (32... Bg7 33. Rd2 $15) 33. Qd8+ Kg7 34. Qd7+ Kf6) 31. Qe4 Kh6 32. Kg2 $2 {[%mdl 8192]} (32. Rd7 $11) 32... Rg5+ 33. Kh1 Rf5 34. Kg2 a5 $2 $40 {[%mdl 128] Black has some attack.} ({Better is} 34... Re5 $19 35. Qf3 Rg5+ 36. Kh1 Bd4 37. Qh3+ Rh5) 35. Rd2 $2 {[%mdl 8192]} (35. h4 $11) 35... Rg5+ $19 36. Kf3 Rf5+ 37. Kg2 {[%cal Rd2f2]} Rg5+ (37... Re5 $142 38. Qf4+ Bg5) 38. Kf3 {[%cal Oh2h4]} Re5 39. Qf4+ Bg5 40. Qd4 Rf5+ 41. Kg2 Qc6+ {What a bad dream for White.   Weighted Error Value: White=0.65/Black=0.70.  Loses game:     	White=2     	---        Missed win:     	White=1     	Black=1      Mistake:       	White=5     	Black=9      Inaccurate:     	White=2     	---        OK:         	White=9     	Black=8      Best:        	White=7     	Black=7      Strong:       	White=2     	Black=1} 0-1

[Event "45th FIDE Olympiad 2024"]
[Site "Budapest"]
[Date "2024.09.19"]
[Round "8.93"]
[White "Senglek, Khonsavanh"]
[Black "Houssein, Mohamed Bilal"]
[Result "0-1"]
[WhiteElo "1591"]
[BlackElo "1870"]
[PlyCount "50"]
[EventDate "2024.09.05"]
[EventType "team-tourn"]
[EventCountry "HUN"]
[WhiteTeam "Laos"]
[BlackTeam "Djibouti"]
[WhiteTeamCountry "LAO"]
[BlackTeamCountry "DJI"]
[TimeControl "40/5400+30:1800+30"]

1. e4 c5 2. a3 d6 3. b4 Nf6 4. Nc3 e6 5. Bb2 Be7 6. f4 O-O 7. d4 cxd4 8. Qxd4 Nc6 9. Qd1 e5 10. f5 d5 11. exd5 Nd4 12. Bd3 Nxd5 13. Qg4 Ne3 14. Qe4 Bg5 15. Nge2 Bxf5 16. Qxe5 Bxd3 17. Nxd4 Re8 18. Qxe8+ Qxe8 19. cxd3 Nc2+ 20. Kd1 Nxd4 21. Re1 Qd7 22. Rb1 Qg4+ 23. Ne2 Nxe2 24. Kc2 Rc8+ 25. Kb3 Qe6+ {0-} 0-1

[Event "45th FIDE Olympiad 2024"]
[Site "Budapest"]
[Date "2024.09.19"]
[Round "8.94"]
[White "Blomqvist, Erik"]
[Black "Pasko, Llambi"]
[Result "1-0"]
[ECO "C78"]
[WhiteElo "2491"]
[BlackElo "2396"]
[Annotator "TA"]
[PlyCount "83"]
[EventDate "2024.09.05"]
[EventType "team-tourn"]
[EventCountry "HUN"]
[SourceTitle "playchess.com"]
[Source "ChessBase"]
[SourceQuality "1"]
[WhiteTeam "Sweden"]
[BlackTeam "Albania"]
[WhiteTeamCountry "SWE"]
[BlackTeamCountry "ALB"]
[TimeControl "40/5400+30:1800+30"]

{[%evp 16,83,30,47,36,24,38,34,43,42,44,27,47,43,45,57,54,43,46,18,46,39,51,39,48,29,42,14,16,9,14,0,4,8,11,0,18,24,3,12,59,47,154,158,177,178,170,176,260,248,363,342,382,366,367,333,315,264,248,227,355,287,790,818,29998,552,519,436,470,445]} 1. e4 e5 2. Nf3 Nc6 3. Bb5 a6 4. Ba4 Nf6 5. O-O b5 6. Bb3 Bc5 7. a4 Bb7 8. d3 O-O 9. Bg5 h6 10. Bh4 Be7 11. axb5 axb5 {White is slightly better.} 12. Rxa8 Bxa8 13. Na3 {[%cal Bb1a3,Ba3c2,Bc2e3][%mdl 32]} Qb8 14. c3 d6 15. Nc2 Bb7 16. Ne3 Bc8 17. Qa1 Nd8 18. d4 c6 19. Re1 Re8 20. Qb1 (20. dxe5 {is more complex.} Nxe4 21. Bxe7 Rxe7 22. Qa5) 20... g6 21. Bg3 {[%cal Rd4e5]} Bf8 $1 22. h3 Bg7 23. Rd1 {Black must now prevent dxe5.} Nh5 24. Bh2 Ne6 25. Qa2 c5 26. dxc5 dxc5 27. Bd5 Qc7 {Prevents Bc6} (27... Nhf4 $11) 28. Qa8 Nef4 {[#]} (28... Bd7 $1 $14 29. Qb7 Re7) 29. Qc6 $1 $36 {[%mdl 2048] White is in control. White is more active.} Qe7 30. Qxb5 Rf8 31. Qb6 Kh7 (31... Be6 {was worth a try.} 32. Bc4 (32. Bxe6 fxe6 33. Ng4 Nxh3+ 34. Kf1 N3f4 $18) 32... Qf6) 32. Ra1 $18 Be6 (32... Qf6 $142 33. Qxf6 (33. Qxc5 Nxg2 34. Nxg2 Qxf3 $16) 33... Nxf6 34. Nxe5 N6xd5) 33. Ra7 Qf6 {[%cal Of4g2]} 34. Bxe6 (34. Qxc5 Nxg2 35. Nxg2 (35. Kxg2 Bxh3+ 36. Kg1 Qxf3 $17) (35. Nxe5 Ngf4 $11) 35... Qxf3 $16) 34... Nxh3+ 35. Kf1 {[%cal Oa7f7] [#] And now Rxf7! would win.} N3f4 36. Ng4 ({Resist} 36. Bxf4 Nxf4 37. Qxc5 Nxe6 $18) 36... Qxe6 37. Qxe6 (37. Qxc5 $2 {too greedy.} Qxg4 38. Bg3 Rd8 $19 (38... Nxg3+ $2 39. fxg3 Qxg3 40. Qf2 $19)) 37... fxe6 (37... Nxe6 $142 38. Ngxe5 (38. Nfxe5 f5 $18) (38. Bxe5 Nhf4 $18) 38... Rd8) 38. Nfxe5 Rb8 $2 (38... g5 39. f3 Rd8 40. Bxf4 gxf4) 39. Bxf4 Nxf4 40. g3 (40. Nf6+ $142 Kh8 41. Nf7#) 40... Nh5 41. Nc4 Re8 42. Rc7 {Weighted Error Value: White=0.27 (precise) /Black=0.47.  Mistake:       	---       	Black=6      Inaccurate:     	White=2     	Black=2      OK:         	White=13    	Black=9      Best:        	White=2     	---        Strong:       	---       	Black=1} 1-0

[Event "45th FIDE Olympiad 2024"]
[Site "Budapest"]
[Date "2024.09.19"]
[Round "8.95"]
[White "Mehmeti, Dritan"]
[Black "Hillarp Persson, Tiger"]
[Result "0-1"]
[ECO "D94"]
[WhiteElo "2364"]
[BlackElo "2457"]
[Annotator "TA"]
[PlyCount "62"]
[EventDate "2024.09.05"]
[EventType "team-tourn"]
[EventCountry "HUN"]
[SourceTitle "playchess.com"]
[Source "ChessBase"]
[SourceQuality "1"]
[WhiteTeam "Albania"]
[BlackTeam "Sweden"]
[WhiteTeamCountry "ALB"]
[BlackTeamCountry "SWE"]
[TimeControl "40/5400+30:1800+30"]

{[%evp 19,62,0,0,0,0,0,0,0,0,-10,0,-31,-28,-39,-27,-58,-58,-109,-111,-108,-109,-359,-347,-355,-346,-530,-525,-601,-614,-619,-606,-581,-562,-675,-635,-980,-681,-690,-710,-777,-768,-844,-830,-5002,-2590]} 1. d4 d5 2. Nf3 Nf6 3. e3 g6 4. c4 Bg7 5. Nc3 O-O 6. cxd5 Nxd5 7. Bc4 Nxc3 8. bxc3 c5 9. O-O Qc7 10. Qe2 Nc6 11. Rd1 b6 12. Bb2 Na5 13. Bd3 {The position is equal.} Bb7 14. Rac1 Rac8 15. Ba6 Bxa6 16. Qxa6 Rfd8 17. Qe2 Qc6 18. e4 (18. Qd3 $15) 18... Qa4 $17 19. Ba1 {[#]} Bh6 $1 {Black is more active.} 20. d5 $2 {White does not recover from this.} Bxc1 $19 21. Rxc1 Nc4 22. Rd1 (22. h3 $142) 22... e6 {Black is clearly winning.} 23. h4 exd5 24. exd5 Re8 25. Qd3 Rcd8 26. h5 Qxa2 27. Kf1 Qa4 28. hxg6 hxg6 29. g3 b5 30. Kg2 Qa2 31. Nd2 {[#]} Rxd5 $3 {[%mdl 512] Weighted Error Value: White=1.00/Black=0.27 (precise) .  Loses game:     	White=1     	---        Mistake:       	White=2     	---        Inaccurate:     	White=3     	---        OK:         	White=1     	Black=9      Best:        	---       	Black=3      Strong:       	---       	Black=1} 0-1

[Event "45th FIDE Olympiad 2024"]
[Site "Budapest"]
[Date "2024.09.19"]
[Round "8.96"]
[White "Lokander, Martin"]
[Black "Veleshnja, Zino"]
[Result "1/2-1/2"]
[ECO "A46"]
[WhiteElo "2469"]
[BlackElo "2294"]
[Annotator "TA"]
[PlyCount "116"]
[EventDate "2024.09.05"]
[EventType "team-tourn"]
[EventCountry "HUN"]
[SourceTitle "playchess.com"]
[Source "ChessBase"]
[SourceQuality "1"]
[WhiteTeam "Sweden"]
[BlackTeam "Albania"]
[WhiteTeamCountry "SWE"]
[BlackTeamCountry "ALB"]
[TimeControl "40/5400+30:1800+30"]

{[%evp 9,115,0,22,12,18,0,0,0,0,0,32,25,45,7,5,18,20,16,21,15,14,1,20,0,0,0,0,0,0,0,0,0,0,-12,-21,-18,-3,-24,-16,-20,0,0,0,0,0,0,8,0,0,0,0,-90,-49,-56,-53,-94,-94,-94,-101,-170,-84,-87,-72,-71,-74,-74,-75,-73,-63,-63,-63,-63,-63,-63,-63,-63,-59,-59,-59,-59,-59,-59,-59,-59,-8,-8,-8,-8,-8,-8,-8,-8,-8,-8,-8,-8,-8,-8,-8,-8,-8,-8,0,0,0,0,0,0]} 1. d4 Nf6 2. Nf3 e6 3. Bg5 h6 4. Bh4 Be7 5. Nbd2 O-O 6. e4 d6 7. Bxf6 Bxf6 8. e5 dxe5 9. dxe5 Bg5 10. Bd3 Nd7 {[%cal Bb8d7,Bd7c5,Bc5d3][%mdl 32]} 11. h4 Bxd2+ 12. Qxd2 Nc5 13. O-O-O {[%cal Od3h7,Ba1d1,Bd1d3,Bd3c3][%mdl 32] [#] Bh7+! would now be deadly.} Nxd3+ 14. Qxd3 Qxd3 15. Rxd3 b6 {Black is weak on the dark squares} 16. Rc3 c5 17. Nd2 Bb7 18. f3 Rfd8 19. Nc4 Rd4 20. Nd6 Bc6 21. Rd3 Rxd3 22. cxd3 $11 {[%mdl 4096] Endgame. KRB-KRN} Rd8 23. Re1 f6 24. Kc2 fxe5 25. Nc4 Rd4 26. Nxe5 Bd5 27. g3 Bxa2 28. b3 {And now Ra1 would win.} Rb4 29. Nc6 Rxb3 {[%cal Oc5c4] Threatens to win with ...c4!} 30. Nxa7 (30. Ra1 $1 $11 Ra3 31. Kb2 Rxd3 32. Rxa2) 30... c4 31. dxc4 Rxf3 32. Rxe6 Bxc4 33. Rxb6 Rxg3 34. Nc6 {[#]} (34. Rb4 $17 {keeps fighting.}) 34... Re3 (34... Bd3+ $1 $19 {and Black stays clearly on top.} 35. Kd2 Be4 36. Ne7+ Kf8) 35. Rb4 Bd5 36. Kd2 Re8 {Against Rb8} 37. Nd4 Re4 38. Nc2 Kf7 39. Rxe4 Bxe4 $15 {KB-KN} 40. Nd4 Kf6 41. Ke3 Ke5 42. Ne2 g6 43. Nf4 h5 44. Ne2 $1 Bb7 45. Nf4 Kf5 46. Nd3 Kg4 (46... Be4 $15 47. Nc5 Bg2) 47. Ne5+ $11 {The position is equal.} Kxh4 48. Nxg6+ Kg5 49. Ne5 Kf5 50. Nd3 Kg4 51. Kf2 Be4 52. Nc5 Bc6 53. Kg1 Kg3 54. Nd3 h4 {( -> ...h3)} (54... Bd5 $5) 55. Nf2 Bg2 56. Nh1+ Kf3 57. Nf2 h3 58. Kh2 Kxf2 {Weighted Error Value: White=0.07 (flawless) /Black=0.08 (flawless) .  Mistake:       	White=2     	Black=2      Inaccurate:     	White=2     	Black=2      OK:         	White=32    	Black=17     Best:        	White=2     	Black=3      Strong:       	White=1     	---} 1/2-1/2

[Event "45th FIDE Olympiad 2024"]
[Site "Budapest"]
[Date "2024.09.19"]
[Round "8.97"]
[White "Makhnev, Denis"]
[Black "Mohammad Fahad, Rahman"]
[Result "1/2-1/2"]
[ECO "D24"]
[WhiteElo "2551"]
[BlackElo "2419"]
[Annotator "TA"]
[PlyCount "60"]
[EventDate "2024.09.05"]
[EventType "team-tourn"]
[EventCountry "HUN"]
[SourceTitle "playchess.com"]
[Source "ChessBase"]
[SourceQuality "1"]
[WhiteTeam "Kazakhstan"]
[BlackTeam "Bangladesh"]
[WhiteTeamCountry "KAZ"]
[BlackTeamCountry "BAN"]
[TimeControl "40/5400+30:1800+30"]

{[%evp 9,60,28,32,0,0,0,28,28,29,37,29,18,24,37,18,26,27,11,43,18,41,35,58,28,33,38,29,43,29,33,21,7,16,10,6,0,0,0,0,0,0,0,0,0,0,0,0,0,0,0,0,0,0]} 1. d4 d5 2. Nf3 Nf6 3. c4 e6 4. Nc3 dxc4 5. e4 Bb4 6. Bxc4 Nxe4 7. O-O Nf6 8. Qa4+ {White has an edge.} Nc6 9. Ne5 a5 {[%cal Oc8d7]} 10. Nxc6 bxc6 11. Qxc6+ Bd7 12. Qf3 O-O 13. Bg5 Be7 14. Rfd1 Rb8 15. b3 Rb6 16. Be3 Bb4 17. Rac1 Bxc3 18. Rxc3 Bc6 19. Qh3 {[%cal Od4d5]} Nd5 20. Rcc1 {The position is equal.} a4 21. Bd2 axb3 22. axb3 Qf6 23. Qg4 Ra8 24. Ra1 Rbb8 25. h3 h6 26. Rdc1 Rxa1 27. Rxa1 Bb5 28. Bxd5 exd5 29. Qg3 Re8 30. Qxc7 Qxd4 {Weighted Error Value: White=0.06 (flawless) /Black=0.05 (flawless) .  Inaccurate:     	White=1     	Black=2      OK:         	White=11    	Black=13     Best:        	White=1     	Black=3} 1/2-1/2

[Event "45th FIDE Olympiad 2024"]
[Site "Budapest"]
[Date "2024.09.19"]
[Round "8.97"]
[White "Kim, Sanker"]
[Black "Koumba, Mounguen Jose Evrard"]
[Result "1/2-1/2"]
[WhiteElo "1564"]
[BlackElo "1957"]
[PlyCount "105"]
[EventDate "2024.09.05"]
[EventType "team-tourn"]
[EventCountry "HUN"]
[WhiteTeam "Cambodia"]
[BlackTeam "Gabon"]
[WhiteTeamCountry "CMB"]
[TimeControl "40/5400+30:1800+30"]

1. d4 Nf6 2. c4 g6 3. Nc3 Bg7 4. e4 d6 5. f4 O-O 6. Nf3 Nc6 7. d5 Nb8 8. Bd3 c5 9. O-O Nbd7 10. e5 dxe5 11. fxe5 Ng4 12. d6 Ndxe5 13. Nxe5 Bxe5 14. h3 Bd4+ 15. Kh1 exd6 16. Qf3 Qh4 17. Ne4 Ne5 18. Qe2 Bxh3 19. Bg5 Bxg2+ 20. Kxg2 Qg4+ 21. Qxg4 Nxg4 22. Be2 f5 23. Nxd6 Nf6 24. Rab1 Ne4 25. Nxe4 fxe4 26. b4 Rxf1 27. Kxf1 Rf8+ 28. Ke1 cxb4 29. Kd2 a5 30. Be3 Bc3+ 31. Kc2 h5 32. a3 Rf5 33. axb4 axb4 34. Rd1 Ra5 35. Rd8+ Kf7 36. c5 Ra2+ 37. Kd1 b3 38. Bc4+ Kf6 39. Rd6+ Kf5 40. Be6+ Ke5 41. Bxb3 Rb2 42. Rd5+ Ke6 43. Rd6+ Kf5 44. Bf7 Kg4 45. Rxg6+ Kf3 46. Bc1 Rh2 47. Rg5 e3 48. Bxe3 Kxe3 49. Rxh5 Rb2 50. Rh3+ Kd4 51. Rh4+ Ke5 52. Rc4 Bd4 53. c6 1/2-1/2

[Event "45th FIDE Olympiad 2024"]
[Site "Budapest"]
[Date "2024.09.19"]
[Round "8.98"]
[White "Manon, Reja Neer"]
[Black "Nogerbek, Kazybek"]
[Result "0-1"]
[ECO "C89"]
[WhiteElo "2417"]
[BlackElo "2519"]
[Annotator "TA"]
[PlyCount "148"]
[EventDate "2024.09.05"]
[EventType "team-tourn"]
[EventCountry "HUN"]
[SourceTitle "playchess.com"]
[Source "ChessBase"]
[SourceQuality "1"]
[WhiteTeam "Bangladesh"]
[BlackTeam "Kazakhstan"]
[WhiteTeamCountry "BAN"]
[BlackTeamCountry "KAZ"]
[TimeControl "40/5400+30:1800+30"]

{[%evp 44,148,-11,-22,-22,-22,-18,-20,-19,-21,-20,-31,-16,-23,-10,-23,-23,-28,-28,-36,-17,-31,-25,-57,-29,-60,-60,-60,-30,-29,-29,-26,-27,-48,-8,-8,0,0,0,0,0,0,0,0,0,-18,-18,-18,-18,-18,-18,-18,-18,-18,-18,-18,-18,-18,0,0,0,0,0,-7492,-7492,-7492,-538,-7201,-1152,-6187,-6147,-5716,-5632,-1606,-368,-1517,-6099,-4133,-14,-14,0,-6238,-6238,-768,-6156,-6122,-6108,-5302,-5058,-5065,-4858,-1912,-1563,-29973,-29974,-29973,-29975,-29984,-29985,-29985,-29986,-29991,-29992,-29992,-29993,-29995,-29996]} 1. e4 e5 2. Nf3 Nc6 3. Bb5 a6 4. Ba4 Nf6 5. O-O Be7 6. Re1 b5 7. Bb3 O-O 8. c3 d5 9. exd5 Nxd5 10. Nxe5 Nxe5 11. Rxe5 Bb7 12. Qf3 Bd6 13. Bxd5 c6 14. Re2 {C89: Closed Ruy Lopez: Marshall Attack.} cxd5 15. d4 Qc7 16. h3 a5 $146 ({Predecessor:} 16... Rae8 17. Nd2 b4 18. Nb3 Rxe2 19. Qxe2 bxc3 20. bxc3 Qxc3 21. Be3 Re8 22. Rc1 Qb4 {0-1 Szelag,M (2385)-Stern,R (2465) Poznan-ch 1999 (2)}) 17. a3 Rae8 18. Nd2 b4 19. axb4 axb4 20. Nf1 Rxe2 21. Qxe2 bxc3 22. bxc3 Qxc3 23. Qb2 Qxb2 24. Bxb2 Ra8 25. Rxa8+ Bxa8 26. Ne3 Bc6 27. Kf1 Bb4 28. Ke2 f6 29. Kd3 Kf7 30. Bc3 Bd6 31. g3 h5 32. h4 g5 33. Nf5 Bf8 34. f4 Bb5+ 35. Kc2 $1 Bd7 36. Ne3 gxh4 37. gxh4 Bh6 38. Be1 Ke6 (38... Bxf4 39. Nxd5 Bd6 40. Nb4) 39. f5+ Kd6 40. Bb4+ Kc6 41. Kd3 Bc8 42. Be7 Ba6+ 43. Kd2 Bg7 44. Kc3 Be2 45. Kd2 Bf3 46. Ke1 Kd7 47. Kf2 Be4 48. Bb4 Bh6 49. Bd2 Bf8 50. Ng2 Bxg2 51. Kxg2 Be7 52. Kf3 Bd8 53. Bh6 $2 {[%mdl 8192]} (53. Ke3 $11) 53... Ba5 $19 54. Ke2 Bc3 $1 55. Be3 Kc6 $1 56. Bf2 Kb5 57. Kd3 Bb4 58. Bg3 Ka4 $2 (58... Ba5 {Threatens to win with ...Bb4.} 59. Bf2 Bc7) 59. Kc2 $2 {[#]} (59. Ke3 Kb3 60. Kd3) 59... Ba5 $1 $19 60. Kb2 {[#]} Bd8 $2 (60... Bd2 $1 $19 61. Kc2 Bb4) 61. Kc3 $11 Be7 (61... Kb5 $5 62. Kb3 $8 Ba5 $11) 62. Bf2 $2 {[%mdl 8192]} (62. Kd3 $11) 62... Bd6 $19 63. Kc2 Kb4 (63... Bc7 $142 64. Be1 Ka3) 64. Kd3 $19 Kb3 65. Be1 Kb2 66. Bf2 Kc1 67. Be3+ Kd1 68. Bg5 fxg5 69. hxg5 h4 70. Ke3 Ke1 71. g6 h3 72. g7 h2 73. g8=Q h1=Q ({Not} 73... h1=B 74. Qg1#) 74. Qg4 Qh2 0-1